Cogmind - Beta 9.4 @@@ ROGUE MODE // 2020.02.17 @ 15:49:54 Player: derk Result: Destroyed by G-50 Soldier with Heavy Laser Performance ------------- Evolutions (5) 2500 Regions Visited (16) 3200 Robots Destroyed (205) 1025 Value Destroyed (7765) 7765 Prototype IDs (33) 660 Alien Tech Used (0) 0 Bonus (3665) 3665 TOTAL SCORE: 18815 Bonus ------- High Alert Combat Kills 1074 Follower Combat Kills 1909 Network Hubs Disabled 200 Met Data Miner 300 A7 Reached Mainframe 300 Met R17 at Cetus 500 Friendly Fire -618 Cogmind --------- Core Integrity 0/1000 Matter 229/300 Energy 350/350 System Corruption 20% Temperature Cool (57) Movement Treading (200) Ox2 Location -5/Hub_04(d) Parts ------- > --- POWER (1) -------- Quantum Reactor > --- PROPULSION (4) --- Medium Treads Medium Treads > --- UTILITY (9) ------ Advanced Cooling System Large Storage Unit High-capacity Storage Unit High-capacity Storage Unit Advanced Targeting Computer Improved Target Analyzer Weapon Cycler Centrium Medium Armor Plating Centrium Medium Armor Plating > --- WEAPON (3) ------- Railgun > --- INVENTORY (26) --- Quantum Reactor Quantum Reactor Wheel Improved Energy Well (600) Improved Energy Well (600) Matter Compressor (150) Improved Kinecellerator Improved Weapon Cycler Centrium Medium Armor Plating Medium Regenerative Plating Experimental Thermal Shield Variable Charge Gun KE Penetrator Precision Grenade Launcher Chainsword Lance Peak State ------------ > --- POWER ------------ Quantum Reactor > --- PROPULSION ------- Armored Medium Treads Armored Medium Treads Centrium Heavy Treads > --- UTILITY ---------- Large Storage Unit High-capacity Storage Unit High-capacity Storage Unit Advanced Targeting Computer Improved Target Analyzer Weapon Cycler Centrium Medium Armor Plating Centrium Medium Armor Plating Medium Regenerative Plating > --- WEAPON ----------- KE Penetrator KE Penetrator Improved KE Penetrator > --- INVENTORY -------- Quantum Reactor Quantum Reactor Quantum Reactor Advanced Cooling System Compact Battery Matter Compressor Matter Compressor Improved Weapon Cycler Centrium Medium Armor Plating Centrium Medium Armor Plating Centrium Medium Armor Plating Centrium Medium Armor Plating Experimental Thermal Shield Variable Charge Gun Coil Gun Coil Gun Coil Gun KE Penetrator KE Penetrator Hypervelocity Coil Gun Precision Grenade Launcher Chainsword Lance [Rating: 114] Favorites ----------- Power Reinforced Ion Engine Engine Reinforced Ion Engine Power Core Light Fission Core Reactor Quantum Reactor Propulsion Light Treads Treads Light Treads Leg Carbon-fiber Leg Wheel Armored Wheel Flight Unit Improved Flight Unit Utility High-capacity Storage Unit Device Weapon Cycler Storage High-capacity Storage Unit Processor Advanced Targeting Computer Hackware Hacking Suite Protection Centrium Medium Armor Plating Weapon KE Penetrator Energy Gun Beam Rifle Energy Cannon Heavy Ion Cannon Ballistic Gun KE Penetrator Ballistic Cannon Advanced Assault Cannon Launcher Precision Grenade Launcher Impact Weapon Hammer Slashing Weapon Scythe Piercing Weapon Lance Build | -11 -10 -9 -9 -9 -8 -8 -7 -7 -7 -6 -6 -5 -5 -5 -5 -5 ------- Run | Scr Mat Mat Min Exi Min Mat Fac Low Dat Pro Fac Fac Ext Cet Arc Hub Slots Evolved 10 | . . 2 . . . 2 2 . . . 2 2 . . . . Power . | . . . . . . . . . . . . . . . . . Propulsion 2 | . . 1 . . . . 1 . . . . . . . . . Utility 7 | . . 1 . . . 2 1 . . . 2 1 . . . . Weapon 1 | . . . . . . . . . . . . 1 . . . . Parts Attached 219 | 7 3 34 2 2 5 25 32 1 . 10 22 20 18 13 3 22 Power 20 | 1 . 2 . . . . 2 . . 2 3 3 3 1 . 3 Engine 7 | 1 . 2 . . . . 1 . . 1 1 . . . . 1 Core 9 | . . . . . . . 1 . . 1 1 3 3 . . . Reactor 4 | . . . . . . . . . . . 1 . . 1 . 2 Propulsion 55 | 2 . 17 . 1 1 6 7 1 . 2 5 6 3 1 1 2 Treads 27 | . . 9 . . 1 4 1 . . . 2 4 2 1 1 2 Leg 12 | . . . . . . 1 3 1 . 1 3 2 1 . . . Wheel 14 | 2 . 7 . 1 . . 3 . . 1 . . . . . . Hover . | . . . . . . . . . . . . . . . . . Flight 2 | . . 1 . . . 1 . . . . . . . . . . Utility 52 | 2 2 5 . 1 . 4 6 . . 4 4 3 6 3 1 11 Device 15 | . . 1 . . . 2 2 . . 2 1 1 1 . . 5 Storage 11 | 2 2 2 . 1 . . . . . 1 . . 2 . . 1 Processor 6 | . . . . . . 1 2 . . . 1 1 . 1 . . Hackware 1 | . . . . . . 1 . . . . . . . . . . Protection 19 | . . 2 . . . . 2 . . 1 2 1 3 2 1 5 Artifact . | . . . . . . . . . . . . . . . . . Weapon 92 | 2 1 10 2 . 4 15 17 . . 2 10 8 6 8 1 6 Energy Gun 17 | 1 . 2 1 . 1 7 4 . . . . . . 1 . . Energy Cannon 4 | . . 1 . . . 1 1 . . . 1 . . . . . Ballistic Gun 44 | 1 1 6 . . 1 4 6 . . 1 3 4 6 5 . 6 Ballistic Cannon 3 | . . . . . . . . . . 1 2 . . . . . Launcher 8 | . . . 1 . 1 1 1 . . . 2 1 . 1 . . Special Weapon . | . . . . . . . . . . . . . . . . . Impact Weapon 1 | . . 1 . . . . . . . . . . . . . . Slashing Weapon 11 | . . . . . 1 2 5 . . . 2 1 . . . . Piercing Weapon 4 | . . . . . . . . . . . . 2 . 1 1 . Special Melee Weapon . | . . . . . . . . . . . . . . . . . Unidentified Prototypes 14 | . . 1 . . . 3 1 . . 1 . 1 2 3 . 2 Parts Lost 52 | . . 5 . . 1 6 6 . . 3 12 3 1 2 . 13 Power 6 | . . 1 . . . . 2 . . 1 1 . . . . 1 Propulsion 20 | . . 1 . . 1 4 2 . . . 7 2 . . . 3 Utility 8 | . . . . . . . 1 . . 1 2 . 1 . . 3 Weapon 18 | . . 3 . . . 2 1 . . 1 2 1 . 2 . 6 Highest Loss Streak 11 | . . 2 . . 1 1 3 . . 2 10 2 1 2 . 11 Average Slot Usage (%) 94 | . 100 99 100 100 95 97 86 100 100 96 86 97 98 94 94 92 Engine 4 | . 14 10 11 11 11 9 2 7 7 5 . . . . . . Core 2 | . . . . . . . 4 . . 1 4 5 5 . . . Treads 12 | . . 20 33 22 18 22 7 . . . . 14 15 17 17 16 Leg 5 | . . . . . . 2 5 15 15 13 16 5 5 . . . Wheel 5 | . 28 12 . 11 11 . 3 15 15 17 2 . . . . . Device 7 | . . 2 11 . . 13 7 7 7 7 7 10 11 5 5 10 Storage 20 | . 28 22 22 32 33 27 15 15 15 15 20 17 19 17 17 17 Processor 11 | . . . . . . 2 17 23 23 19 16 17 11 12 17 11 Protection 5 | . . 8 . . . . 4 . . 2 2 5 7 14 11 10 Energy Gun 2 | . 14 2 9 11 9 4 3 . . . . . . . . . Ballistic Gun 11 | . 14 17 11 11 2 10 7 7 7 7 3 15 16 16 11 16 Slashing Weapon 1 | . . . . . 1 . 2 7 7 3 4 . . . . . Naked Turns . | . . . . . . . . . . . . . . . . . Heaviest Build 139 | 17 41 84 81 96 96 101 103 79 79 106 108 122 126 139 131 139 Greatest Support 135 | 32 32 60 60 10 10 63 43 24 24 34 46 77 107 134 135 135 Greatest Overweight (x) 27 | 2 1 3 1 9 9 10 27 3 3 3 10 5 2 1 . 1 Average Overweight (x) 2 | . . 1 1 8 9 2 4 3 3 2 2 1 1 . . . Largest Inventory Capacity 26 | 8 16 26 20 26 26 26 26 20 20 26 26 26 26 26 26 26 Average Capacity 23 | 6 13 19 20 25 26 26 20 20 20 20 26 26 26 26 26 26 Most Carried 26 | 4 6 20 20 23 26 26 25 20 20 22 26 26 26 26 26 26 Average Carried 21 | 2 4 17 20 22 23 23 19 19 20 20 17 24 25 24 25 24 Final Capacity 26 | 8 16 20 20 26 26 26 20 20 20 26 26 26 26 26 26 26 Final Carried 26 | 4 6 20 20 23 24 26 20 20 20 22 26 26 23 25 26 16 Class Distribution -------------------- 54% | Hauler-Mutant 10% | Hauler-Gunner 8% | Scavenger-Gunner 8% | Hauler-Assassin 6% | Commander-Gunner 6% | Scavenger-Mutant Dominant Class ---------------- Mutant | -10/Materials Hauler-Mutant | -9/Materials Hauler-Mutant | -9/Mines Hauler-Mutant | -9/Exiles Hauler-Mutant | -8/Mines Hauler-Mutant | -8/Materials Hauler-Mutant | -7/Factory Hauler-Assassin | -7/Lower Caves Hauler-Assassin | -7/Data Miner Hauler-Mutant | -6/Proximity Caves Hauler-Mutant | -6/Factory Hauler-Gunner | -5/Factory Commander-Gunner | -5/Extension Scavenger-Gunner | -5/Cetus Scavenger-Mutant | -5/Archives Scavenger-Gunner | -5/Hub_04(d) Resources | -11 -10 -9 -9 -9 -8 -8 -7 -7 -7 -6 -6 -5 -5 -5 -5 -5 ----------- Run | Scr Mat Mat Min Exi Min Mat Fac Low Dat Pro Fac Fac Ext Cet Arc Hub Matter Collected 6364 | 276 . 698 . . 72 798 488 48 . 373 391 829 781 575 184 851 Remotely . | . . . . . . . . . . . . . . . . . Salvage Created 9495 | 109 . 832 12 . 47 1292 702 . . 332 584 1041 937 667 448 2492 Parts 444 | 4 . 50 2 . 6 72 43 . . 12 25 44 27 23 21 115 Haulers Intercepted 10 | . . 2 . . . 4 . . . . 2 2 . . . . Recyclers Shooed 3 | . . 2 . . . 1 . . . . . . . . . . Parts Field Recycled . | . . . . . . . . . . . . . . . . . Retrieved Matter . | . . . . . . . . . . . . . . . . . Parts Self-Destructed 20 | . . . . . . . . . . 20 . . . . . . Prevented . | . . . . . . . . . . . . . . . . . Kills | -11 -10 -9 -9 -9 -8 -8 -7 -7 -7 -6 -6 -5 -5 -5 -5 -5 ------- Run | Scr Mat Mat Min Exi Min Mat Fac Low Dat Pro Fac Fac Ext Cet Arc Hub Combat Hostiles Destroyed 147 | . . 20 3 . 6 23 11 . . 7 13 15 10 12 4 23 Melee 1 | . . . . . . . 1 . . . . . . . . . Guns 111 | . . 19 . . . 15 9 . . 5 3 14 10 10 4 22 Cannons 13 | . . 1 . . . 4 1 . . 2 5 . . . . . AOE 22 | . . . 3 . 6 4 . . . . 5 1 . 2 . 1 Classes Destroyed 15 | 2 . 6 . . . 2 2 . . 1 . 1 . . . 1 Worker 13 | . . . . . . 1 3 . . . . 1 . . . 8 Builder 9 | . . 1 . . . 1 1 . . . . . . . . 6 Tunneler 2 | 1 . . . . . 1 . . . . . . . . . . Hauler 10 | . . 2 . . . 4 . . . . 2 2 . . . . Recycler 12 | 1 . 1 . . . 2 . . . . . . 2 . . 6 Operator 6 | . . 1 . . . . 1 . . . . . . . 2 2 Watcher 5 | . . . . . . . 1 . . . . 1 . 1 . 2 Swarmer 42 | . . 11 3 . 4 6 . . . 2 4 . 1 3 . 8 Grunt 56 | . . 5 . . 2 13 6 . . 3 7 7 6 1 . 6 Brawler 1 | . . . . . . . . . . 1 . . . . . . Duelist 4 | . . . . . . 1 . . . . . . 1 1 . 1 Protector 1 | . . . . . . . . . . . . . . . . 1 Sentry 19 | . . 4 . . . 3 2 . . 1 1 2 1 . 4 1 Hunter 6 | . . . . . . . . . . . . 2 . 2 . 2 Programmer 10 | . . . . . . . 3 . . . 1 4 1 1 . . Cetus Guard 4 | . . . . . . . . . . . . . . 4 . . Lightning 4 | . . . . . . . . . . . . . . . . 4 Butcher 1 | . . . . . . . . . . . . . 1 . . . Best Kill Streak 19 | 2 . 5 3 . 4 7 3 . . 2 6 5 4 3 3 19 Combat Bots Only 10 | . . 4 3 . 4 5 3 . . 2 5 4 4 3 3 10 Max Kills in Single Turn 11 | 1 . 1 2 . 2 3 1 . . 1 3 2 2 1 1 11 Gunslinging 1 | . . . . . . . . . . . . . . . . 1 Exploded 3 | . . . 2 . 2 3 . . . . 3 1 . 1 . 1 Melee 1 | . . . . . . . 1 . . . . . . . . . Uniques/NPCs Destroyed . | . . . . . . . . . . . . . . . . . Combat | -11 -10 -9 -9 -9 -8 -8 -7 -7 -7 -6 -6 -5 -5 -5 -5 -5 -------- Run | Scr Mat Mat Min Exi Min Mat Fac Low Dat Pro Fac Fac Ext Cet Arc Hub Damage Taken 13442 | 36 . 1009 107 . 154 1000 1075 . . 414 1818 1047 462 911 572 4837 Core 1889 | . . 156 19 . 41 193 185 . . 54 241 161 50 88 . 701 Absorbed by Shields 563 | . . . . . . . . . . . . . 241 322 . . Reduced by Siege Mode 94 | . . . . . . . . . . . . . . 4 . 90 Core Remaining (%) 74 | 100 100 . . . 46 64 . . . 65 71 . . . . . Volleys Fired 461 | 3 3 75 4 . 8 79 48 . . 29 37 33 31 42 20 49 Largest 3 | 2 2 2 1 . 1 2 2 . . 2 2 3 3 3 3 3 Hottest 225 | 60 60 131 30 . 30 138 105 . . 76 76 96 96 225 101 103 Shots Fired 979 | 6 6 139 4 . 8 147 94 . . 46 49 94 93 108 41 144 Gun 887 | 6 6 130 . . . 134 89 . . 32 16 91 93 105 41 144 Cannon 69 | . . 9 . . . 12 5 . . 14 29 . . . . . Launcher 23 | . . . 4 . 8 1 . . . . 4 3 . 3 . . Special . | . . . . . . . . . . . . . . . . . Kinetic 843 | 3 3 119 . . . 89 81 . . 46 29 91 93 104 41 144 Thermal 79 | . . 20 . . . 35 7 . . . 16 . . 1 . . Explosive 23 | . . . 4 . 8 1 . . . . 4 3 . 3 . . Electromagnetic 34 | 3 3 . . . . 22 6 . . . . . . . . . Robot Hit Streak 30 | 5 3 13 2 . 3 22 17 . . 30 8 27 18 23 21 24 Robot Miss Streak 7 | 1 1 4 1 . 3 3 3 . . 7 3 2 2 2 1 2 Penetration Max 2 | . . . . . . . . . . . . 1 2 1 1 2 Secondary Targets 17 | . . 3 . . . 2 2 . . . . 1 1 1 . 7 Max Gunslinging Chain 1 | . . 1 . . . 1 1 . . . . 1 1 1 . 1 Shots Hit Robots 696 | 5 4 77 2 . 3 115 74 . . 41 33 69 61 79 37 96 Core Hits 411 | 3 . 34 3 . 12 52 34 . . 38 37 39 32 36 14 77 Critical Hits 68 | . . . . . . . 2 . . . 1 8 9 12 7 29 Critical Kills 31 | . . . . . . . . . . . . 5 4 5 3 14 Critical Parts Destroyed 35 | . . . . . . . 2 . . . 1 3 5 7 2 15 Melee Attacks 91 | . . 25 . . . 4 20 . . 1 28 9 . 3 1 . Impact 25 | . . 25 . . . . . . . . . . . . . . Slashing 55 | . . . . . . 4 20 . . 1 28 2 . . . . Piercing 11 | . . . . . . . . . . . . 7 . 3 1 . Sneak Attacks 1 | . . 1 . . . . . . . . . . . . . . Combat Hostiles . | . . . . . . . . . . . . . . . . . Follow-up Attacks . | . . . . . . . . . . . . . . . . . Damage Inflicted 20102 | 86 49 1085 250 . 702 2719 1506 . . 758 1698 1981 2114 2210 965 3979 Guns 14069 | 50 49 955 . . . 1705 1284 . . 575 262 1684 2114 1716 965 2710 Cannons 1211 | . . 100 . . . 300 107 . . 183 521 . . . . . Explosions 4701 | 36 . . 250 . 702 714 85 . . . 854 297 . 494 . 1269 Melee 121 | . . 30 . . . . 30 . . . 61 . . . . . Ramming . | . . . . . . . . . . . . . . . . . Kinetic 13515 | 11 37 896 . . . 1044 1122 . . 758 458 1684 2114 1716 965 2710 Thermal 2133 | 36 . 159 . . . 1170 259 . . . 509 . . . . . Explosive 2568 | . . . 250 . 702 155 . . . . 670 297 . 494 . . Electromagnetic 1765 | 39 12 . . . . 350 95 . . . . . . . . 1269 Impact 30 | . . 30 . . . . . . . . . . . . . . Slashing 91 | . . . . . . . 30 . . . 61 . . . . . Piercing . | . . . . . . . . . . . . . . . . . Highest Corruption 20 | . . . . . . . 3 3 3 3 2 1 2 2 2 20 Average Corruption 1 | . . . . . . . 1 3 3 3 2 1 1 2 2 3 Corruption Purged . | . . . . . . . . . . . . . . . . . Effects 74 | . . . . . . . 12 5 4 11 7 2 9 7 5 12 Message Errors 17 | . . . . . . . . . 2 2 2 1 4 1 4 1 Matter Fused 7 | . . . . . . . 1 2 1 3 . . . . . . Heat Flow Errors 8 | . . . . . . . 1 2 . 1 2 . 2 . . . Energy Discharges 13 | . . . . . . . 3 1 . 2 1 . 1 2 . 3 Data Loss (minor) 8 | . . . . . . . 2 . 1 . 1 . 1 1 1 1 Targeting Errors 18 | . . . . . . . 4 . . 3 1 1 1 1 . 7 Weapon Failures 3 | . . . . . . . 1 . . . . . . 2 . . Overload Shots 1 | . . . . . . . . . . . . . . 1 . . Overflow Damage 281 | . . 5 10 . 40 91 31 . . . 18 . . 25 . 61 Projectiles 32 | . . 5 . . . 16 . . . . 11 . . . . . Explosions 244 | . . . 10 . 40 75 31 . . . 2 . . 25 . 61 Melee 5 | . . . . . . . . . . . 5 . . . . . Knockbacks 4 | . . 1 . . . . . . . 1 2 . . . . . Impact 1 | . . 1 . . . . . . . . . . . . . . Kinetic 3 | . . . . . . . . . . 1 2 . . . . . Secondary . | . . . . . . . . . . . . . . . . . Self-Inflicted Damage 271 | 36 . . 39 . 6 67 45 . . . . . . . . 78 Shots 6 | 1 . . 1 . 1 1 1 . . . . . . . . 1 Rammed 1 | . . 1 . . . . . . . . . . . . . . Targets Rammed 1 | . . 1 . . . . . . . . . . . . . . Kicked . | . . . . . . . . . . . . . . . . . Crushed . | . . . . . . . . . . . . . . . . . Highest Temperature 571 | 12 . 199 . . 10 198 268 214 . 148 243 299 235 306 125 571 Average Temperature 68 | 12 . 89 . . 5 55 59 101 . 39 37 40 43 86 59 136 Received Heat Transfer 2516 | . . 147 . . 36 387 393 . . 129 249 153 53 21 117 831 Effects 6 | . . . . . . . . . . . . . 1 . . 5 Shutdowns 2 | . . . . . . . . . . . . . . . . 2 Energy Bleed 2 | . . . . . . . . . . . . . . . . 2 Interference 1 | . . . . . . . . . . . . . 1 . . . Matter Decay 1 | . . . . . . . . . . . . . . . . 1 Siege Activations 4 | . . . . . . . . . . . . . . 1 . 3 Total Turns 82 | . . . . . . . . . . . . . . 13 . 69 Longest Duration 47 | . . . . . . . . . . . . . . 13 . 47 Robots Corrupted . | . . . . . . . . . . . . . . . . . Combat Hostiles . | . . . . . . . . . . . . . . . . . Parts Fried 12 | . . . . . . 1 1 . . . . . 1 . . 9 Impact Corruptions . | . . . . . . . . . . . . . . . . . Robots Melted . | . . . . . . . . . . . . . . . . . Combat Hostiles . | . . . . . . . . . . . . . . . . . Parts Melted 2 | . . . . . . 1 1 . . . . . . . . . Heat Transferred 2835 | 50 . 296 . . . 1547 348 . . . 594 . . . . . Parts Sabotaged 1 | . . . . . . . . . . . . . . . . 1 Parts Stolen . | . . . . . . . . . . . . . . . . . Parts Stripped . | . . . . . . . . . . . . . . . . . Power Chain Reactions 3 | 1 . . . . . 1 1 . . . . . . . . . Missiles Intercepted . | . . . . . . . . . . . . . . . . . Alert | -11 -10 -9 -9 -9 -8 -8 -7 -7 -7 -6 -6 -5 -5 -5 -5 -5 ------- Run | Scr Mat Mat Min Exi Min Mat Fac Low Dat Pro Fac Fac Ext Cet Arc Hub Peak Influence 1148 | 10 21 315 116 . 167 483 281 . . . 311 363 975 1078 586 1148 Average Influence 286 | 2 19 160 83 . 124 196 136 . . . 123 142 510 921 553 391 Maximum Alert Level 4 | . . 1 . . . 2 1 . . . 1 1 3 3 2 4 Low Security (%) 53 | 100 100 71 100 . 100 53 72 . . . 73 67 23 . . 24 Level 1 22 | . . 28 . . . 39 27 . . . 26 32 14 . . 36 Level 2 10 | . . . . . . 6 . . . . . . 25 12 100 26 Level 3 12 | . . . . . . . . . . . . . 35 87 . 12 Level 4 . | . . . . . . . . . . . . . . . . 1 Level 5 . | . . . . . . . . . . . . . . . . . High Security . | . . . . . . . . . . . . . . . . . Max Security . | . . . . . . . . . . . . . . . . . Squads Dispatched 28 | . 1 3 . . . 3 4 . . . 5 3 4 . . 5 Investigation 5 | . . 1 . . . 1 1 . . . . 1 1 . . . Extermination 5 | . . . . . . . 2 . . . 1 2 . . . . Reinforcement 12 | . 1 2 . . . 2 1 . . . 2 . 1 . . 3 Assault 4 | . . . . . . . . . . . 1 . 2 . . 1 Garrison 2 | . . . . . . . . . . . 1 . . . . 1 Intercept . | . . . . . . . . . . . . . . . . . Construction Impeded 7 | . . 1 . . . 2 . . . . 1 . 1 . . 2 Haulers Reinforced . | . . . . . . . . . . . . . . . . . Stealth | -11 -10 -9 -9 -9 -8 -8 -7 -7 -7 -6 -6 -5 -5 -5 -5 -5 --------- Run | Scr Mat Mat Min Exi Min Mat Fac Low Dat Pro Fac Fac Ext Cet Arc Hub Distress Signals 10 | . . . . . . . 1 . . . . 1 2 2 . 4 Communications Jammed . | . . . . . . . . . . . . . . . . . Distress Signals . | . . . . . . . . . . . . . . . . . Times Spotted 254 | . 2 23 3 . 8 29 17 . . 13 21 17 39 29 6 47 Peak Tracking Total 15 | . 3 5 3 . 4 5 3 . . 4 5 5 6 5 2 15 Tactical Retreats 20 | . . 2 . . 1 5 . . . 1 3 . 2 2 . 4 Traps | -11 -10 -9 -9 -9 -8 -8 -7 -7 -7 -6 -6 -5 -5 -5 -5 -5 ------- Run | Scr Mat Mat Min Exi Min Mat Fac Low Dat Pro Fac Fac Ext Cet Arc Hub Traps Triggered 13 | . 1 1 . . . 1 . . . . 1 . 7 . . 2 Indirectly . | . . . . . . . . . . . . . . . . . Trap Hack Attempts . | . . . . . . . . . . . . . . . . . Triggered . | . . . . . . . . . . . . . . . . . Disarmed . | . . . . . . . . . . . . . . . . . Reprogrammed . | . . . . . . . . . . . . . . . . . Reused . | . . . . . . . . . . . . . . . . . Traps Extracted . | . . . . . . . . . . . . . . . . . Installed 1 | . . . . . . . . . . . 1 . . . . . Triggered 2 | . . . . . . . . . . 1 . . . . . 1 Machines | -11 -10 -9 -9 -9 -8 -8 -7 -7 -7 -6 -6 -5 -5 -5 -5 -5 ---------- Run | Scr Mat Mat Min Exi Min Mat Fac Low Dat Pro Fac Fac Ext Cet Arc Hub Machines Disabled 39 | . . 1 . . . 7 1 . . . 3 3 2 4 1 17 Max in Single Turn 11 | . . 1 . . . 6 1 . . . 3 1 1 1 1 11 Garrison Access 1 | . . . . . . . . . . . 1 . . . . . Network Hub 1 | . . . . . . . . . . . . . . . . 1 Energy Cycler 1 | . . . . . . . . . . . . . 1 . . . Machines Sabotaged . | . . . . . . . . . . . . . . . . . Garrisons Compromised . | . . . . . . . . . . . . . . . . . Overloaded Fab Kills . | . . . . . . . . . . . . . . . . . Fab Network Shutdowns . | . . . . . . . . . . . . . . . . . Hacking | -11 -10 -9 -9 -9 -8 -8 -7 -7 -7 -6 -6 -5 -5 -5 -5 -5 --------- Run | Scr Mat Mat Min Exi Min Mat Fac Low Dat Pro Fac Fac Ext Cet Arc Hub Machines Accessed 35 | . 1 2 . 2 . 5 4 . 4 1 1 3 7 1 1 3 Terminals 23 | . 1 1 . . . 5 3 . . 1 . 1 7 1 . 3 Fabricators 2 | . . . . . . . 1 . . . . 1 . . . . Repair Stations 1 | . . . . . . . . . . . 1 . . . . . Recycling Units . | . . . . . . . . . . . . . . . . . Scanalyzers 2 | . . 1 . . . . . . . . . 1 . . . . Garrison Access . | . . . . . . . . . . . . . . . . . Total Hacks 107 | . 1 3 . 2 . 11 10 . 25 1 2 7 14 1 25 5 Successful 86 | . . 3 . 2 . 9 5 . 25 1 . 2 11 1 25 2 Failed 21 | . 1 . . . . 2 5 . . . 2 5 3 . . 3 Catastrophic 3 | . . . . . . . 2 . . . . 1 . . . . Database Lockouts . | . . . . . . . . . . . . . . . . . Manual 18 | . 1 1 . . . 3 . . . . . . 7 2 3 1 Terminals 43 | . 1 1 . . . 11 8 . . 1 . 1 14 1 . 5 Fabricators 7 | . . . . . . . 2 . . . . 5 . . . . Repair Stations 2 | . . . . . . . . . . . 2 . . . . . Recycling Units . | . . . . . . . . . . . . . . . . . Scanalyzers 3 | . . 2 . . . . . . . . . 1 . . . . Garrison Access . | . . . . . . . . . . . . . . . . . Terminal Hacks 76 | . . 1 . 2 . 9 4 . 25 1 . 1 6 1 25 1 Record 40 | . . . . 2 . . . . 11 1 . . . 1 25 . Part Schematic 9 | . . . . . . 2 . . 7 . . . . . . . Robot Schematic 4 | . . . . . . . . . 4 . . . . . . . Prototype ID Bank 6 | . . . . . . 2 . . 3 . . . 1 . . . Open Door 2 | . . . . . . . . . . . . 1 1 . . . Branch Access Points 1 | . . . . . . . 1 . . . . . . . . . Emergency Access Points 1 | . . . . . . 1 . . . . . . . . . . Alert Level 1 | . . . . . . . 1 . . . . . . . . . Unreport Threat 2 | . . . . . . . . . . . . . 1 . . 1 Locate Traps 3 | . . . . . . 1 1 . . . . . 1 . . . Hauler Manifests 3 | . . 1 . . . 1 1 . . . . . . . . . Registered Components 1 | . . . . . . 1 . . . . . . . . . . Zone Layout 3 | . . . . . . 1 . . . . . . 2 . . . Fabricator Hacks 2 | . . . . . . . 1 . . . . 1 . . . . Network Status 1 | . . . . . . . 1 . . . . . . . . . Load Schematic 1 | . . . . . . . . . . . . 1 . . . . Repair Station Hacks . | . . . . . . . . . . . . . . . . . Recycling Unit Hacks . | . . . . . . . . . . . . . . . . . Scanalyzer 2 | . . 2 . . . . . . . . . . . . . . Insert Component 1 | . . 1 . . . . . . . . . . . . . . Analyze 1 | . . 1 . . . . . . . . . . . . . . Garrison Access Hacks . | . . . . . . . . . . . . . . . . . Unauthorized Hacks 13 | . . . . . . . . . . . . . 11 . . 2 Terminals 6 | . . . . . . . . . . . . . 5 . . 1 Track 1 | . . . . . . . . . . . . . 1 . . . Botnet 5 | . . . . . . . . . . . . . 4 . . 1 Fabricators . | . . . . . . . . . . . . . . . . . Repair Stations . | . . . . . . . . . . . . . . . . . Recycling Units . | . . . . . . . . . . . . . . . . . Scanalyzers . | . . . . . . . . . . . . . . . . . Garrison Access . | . . . . . . . . . . . . . . . . . Data Cores Recovered 1 | . . . . . . . . . . . . . . . . 1 Used . | . . . . . . . . . . . . . . . . . Hacking Detections 20 | . 1 1 . . . 3 4 . . . 1 2 5 . . 3 Full Trace Events 4 | . . . . . . 1 1 . . . . 1 1 . . . Feedback Events 1 | . . . . . . . 1 . . . . . . . . . Corruption 1 | . . . . . . . 1 . . . . . . . . . Feedback Blocked . | . . . . . . . . . . . . . . . . . Robot Schematics Acquired 4 | . . . . . . . . . 4 . . . . . . . Robots Built . | . . . . . . . . . . . . . . . . . Matter . | . . . . . . . . . . . . . . . . . Time . | . . . . . . . . . . . . . . . . . Total Robot Build Rating . | . . . . . . . . . . . . . . . . . Part Schematics Acquired 10 | . . 1 . . . 2 . . 7 . . . . . . . Parts Built . | . . . . . . . . . . . . . . . . . Matter . | . . . . . . . . . . . . . . . . . Time . | . . . . . . . . . . . . . . . . . Total Part Build Rating . | . . . . . . . . . . . . . . . . . Parts Repaired . | . . . . . . . . . . . . . . . . . Time . | . . . . . . . . . . . . . . . . . Parts Recycled . | . . . . . . . . . . . . . . . . . Recycled Matter . | . . . . . . . . . . . . . . . . . Retrieved Matter . | . . . . . . . . . . . . . . . . . Retrieved Components . | . . . . . . . . . . . . . . . . . Parts Scanalyzed 1 | . . 1 . . . . . . . . . . . . . . Part Schematics Acquired 1 | . . 1 . . . . . . . . . . . . . . Parts Damaged . | . . . . . . . . . . . . . . . . . Bothacking | -11 -10 -9 -9 -9 -8 -8 -7 -7 -7 -6 -6 -5 -5 -5 -5 -5 ------------ Run | Scr Mat Mat Min Exi Min Mat Fac Low Dat Pro Fac Fac Ext Cet Arc Hub Used RIF Installer . | . . . . . . . . . . . . . . . . . Robots Hacked . | . . . . . . . . . . . . . . . . . Non-combat . | . . . . . . . . . . . . . . . . . Combat . | . . . . . . . . . . . . . . . . . Robot Hacks Applied . | . . . . . . . . . . . . . . . . . Relay Couplers Released 4 | . . . . . . . 3 . . . 1 . . . . . Machine Destruction 1 | . . . . . . . . . . . 1 . . . . . Programmers 3 | . . . . . . . 3 . . . . . . . . . Robots Rewired 19 | . . . . . . . . . . . . . 19 . . . Allies Hacked . | . . . . . . . . . . . . . . . . . Hacks Repelled . | . . . . . . . . . . . . . . . . . Allies | -11 -10 -9 -9 -9 -8 -8 -7 -7 -7 -6 -6 -5 -5 -5 -5 -5 -------- Run | Scr Mat Mat Min Exi Min Mat Fac Low Dat Pro Fac Fac Ext Cet Arc Hub Total Allies 24 | . . . . . . . . . . 1 . . 23 . . . Largest Group 13 | . . . . . . . . . . 1 . . 13 7 1 . Highest-Rated Group 441 | . . . . . . . . . . 94 . . 441 289 124 . Highest-Rated Ally 156 | . . . . . . . . . . 94 . . 156 137 124 . Total Orders 1 | . . . . . . . . . . . . . . 1 . . EXPLORE 1 | . . . . . . . . . . . . . . 1 . . Ally Attacks 257 | . . . . . . . . . . 17 . . 148 92 . . Total Damage 6587 | . . . . . . . . . . 650 . . 4569 1368 . . Kills 60 | . . . . . . . . . . 5 . . 39 16 . . Allies Corrupted . | . . . . . . . . . . . . . . . . . Allies Melted . | . . . . . . . . . . . . . . . . . Intel | -11 -10 -9 -9 -9 -8 -8 -7 -7 -7 -6 -6 -5 -5 -5 -5 -5 ------- Run | Scr Mat Mat Min Exi Min Mat Fac Low Dat Pro Fac Fac Ext Cet Arc Hub Robot Analysis Total . | . . . . . . . . . . . . . . . . . Derelict Logs Recovered 1 | . . . . . . . . 1 . . . . . . . . Drone Launches 2 | . . . . . . . . . . . . . 2 . . . Drone Recoveries . | . . . . . . . . . . . . . . . . . Exploration | -11 -10 -9 -9 -9 -8 -8 -7 -7 -7 -6 -6 -5 -5 -5 -5 -5 ------------- Run | Scr Mat Mat Min Exi Min Mat Fac Low Dat Pro Fac Fac Ext Cet Arc Hub Turns Passed 11027 | 63 183 1207 102 685 234 1091 1440 311 261 478 1262 799 1360 731 377 443 Spaces Moved 5096 | 41 148 564 51 401 123 412 605 255 119 319 613 294 498 324 193 136 Core 14 | 4 . . . . . . 10 . . . . . . . . . Treads 2379 | . . 285 51 . . 373 275 . . . 6 238 498 324 193 136 Legs 619 | . . . . . . . 81 . . . 482 56 . . . . Wheels 2084 | 37 148 279 . 401 123 39 239 255 119 319 125 . . . . . Hover . | . . . . . . . . . . . . . . . . . Flight . | . . . . . . . . . . . . . . . . . Fastest Speed 50 | 50 100 93 180 160 170 170 120 120 120 106 106 186 185 166 163 163 Average Speed 167 | 98 107 143 180 169 170 186 198 120 120 117 171 201 196 177 163 179 Slowest Speed 1400 | 150 110 220 180 170 170 200 1400 120 120 120 210 270 210 186 166 183 Overloaded Moves . | . . . . . . . . . . . . . . . . . Propulsion Burnouts . | . . . . . . . . . . . . . . . . . Robots Hopped . | . . . . . . . . . . . . . . . . . Cave-ins Triggered 1 | . . . . . . . . . . . . . . . . 1 Exploration Rate (%) 45 | 5 28 37 15 90 48 34 25 47 80 57 13 8 69 91 97 30 Regions Visited 16 Branch Regions 10 Pre-discovered Areas 1 | . . . . . . . . . 1 . . . . . . . Known Exits Taken 3 | . . . . . . . 1 . . . . . . 1 1 . Unknown Exits Taken 13 | 1 1 1 1 1 1 1 . 1 1 1 1 1 1 . . . Scrap Searched 3 | . . . . . 2 . . 1 . . . . . . . . Spaces Dug 86 | . . 2 . . . 4 18 . . 1 33 8 14 . 1 5 Terrain Destroyed 520 | 1 . 6 25 . 59 35 31 . . 4 65 24 35 45 3 187 Melee 57 | . . 2 . . . 4 18 . . 1 23 8 . . 1 . Projectile 109 | . . 4 . . . . . . . 3 7 2 35 17 2 39 AOE 354 | 1 . . 25 . 59 31 13 . . . 35 14 . 28 . 148 Actions | -11 -10 -9 -9 -9 -8 -8 -7 -7 -7 -6 -6 -5 -5 -5 -5 -5 --------- Run | Scr Mat Mat Min Exi Min Mat Fac Low Dat Pro Fac Fac Ext Cet Arc Hub Total 6730 | 54 166 783 57 405 139 619 756 261 237 385 737 427 828 407 222 247 Wait 388 | . 9 42 1 . . 60 19 3 119 14 15 50 26 5 . 25 Move 5080 | 40 147 563 50 400 122 411 604 254 118 318 612 293 497 323 192 136 Hop . | . . . . . . . . . . . . . . . . . Pick Up 129 | 4 2 27 . 3 3 19 14 1 . 7 18 9 6 8 3 5 Fast Attach 67 | 7 1 5 . . . 11 8 . . 1 3 7 9 6 1 8 Attach 54 | . . 8 . . 1 6 5 . . 4 11 4 2 2 . 11 Detach 9 | . . 2 . . . 2 . . . . . 1 1 2 . 1 Swap 99 | . 2 21 2 2 4 9 19 1 . 5 8 9 7 5 2 3 Drop 117 | . 2 14 . . 1 18 19 2 . 6 4 12 16 11 3 9 Fire 461 | 3 3 75 4 . 8 79 48 . . 29 37 33 31 42 20 49 Melee 91 | . . 25 . . . 4 20 . . 1 28 9 . 3 1 . Ram . | . . . . . . . . . . . . . . . . . Kick . | . . . . . . . . . . . . . . . . . Crush 1 | . . 1 . . . . . . . . . . . . . . Escape Stasis 11 | . . . . . . . . . . . . . 11 . . . Rewire 221 | . . . . . . . . . . . . . 221 . . . Trap 1 | . . . . . . . . . . . 1 . . . . . Miscellaneous 1 | . . . . . . . . . . . . . 1 . . . Route ------- -11/Scrapyard -10/Materials -9/Materials (discovered 2 exits: *Mat / [*Min]) -9/Mines -9/Exiles -8/Mines -8/Materials -7/Factory (discovered 3 exits: *Fac / *Low x2) -7/Lower Caves (discovered 2 exits: Low / *Dat) -7/Data Miner -6/Proximity Caves -6/Factory -5/Factory -5/Extension (discovered 2 exits: *Fac / *Cet) -5/Cetus (discovered 2 exits: *Fac / *Arc) -5/Archives (discovered 3 exits: *Fac / *Hub x2) -5/Hub_04(d) (discovered 1 exit: *Fac) History --------- Turn | Location | Event 18 | -11/Scrapyard | Discovered new exit (range 15) 64 | -11/Scrapyard | Entered Materials 221 | -10/Materials | Discovered new exit (range 16) 247 | -10/Materials | Entered another Materials area 247 | -9/Materials | Evolved 2 slots: Propulsion x1, Utility x1 591 | -9/Materials | Build established: Hauler-Mutant 681 | -9/Materials | Discovered new exit (range 15) 778 | -9/Materials | Discovered new exit (range 16) 1454 | -9/Materials | Entered Mines 1549 | -9/Mines | Deemed a non-threat by the Exiles lab entrance 1549 | -9/Mines | Discovered new exit (range 5) 1556 | -9/Mines | Entered Exiles 1556 | -9/Exiles | Found Exiles lab abandoned 2222 | -9/Exiles | Discovered new exit (range 14) 2241 | -9/Exiles | Entered Mines 2371 | -8/Mines | Core integrity fell below 50% 2469 | -8/Mines | Discovered new exit (range 5) 2475 | -8/Mines | Entered Materials 2475 | -8/Materials | Evolved 2 slots: Utility x2 3525 | -8/Materials | Discovered new exit (range 4) 3566 | -8/Materials | Entered Factory 3566 | -7/Factory | Evolved 2 slots: Propulsion x1, Utility x1 3962 | -7/Factory | Discovered new exit (range 21) 4081 | -7/Factory | Lost 3 parts (1p2n) 4704 | -7/Factory | Identified exit to Lower Caves 5006 | -7/Factory | Entered Lower Caves 5254 | -7/Lower Caves | Identified exit to Lower Caves 5273 | -7/Lower Caves | Build established: Hauler-Assassin 5306 | -7/Lower Caves | A Derelict revealed a hidden shortcut to meet someone special 5317 | -7/Lower Caves | Entered Data Miner 5317 | -7/Data Miner | Discovered new exit (range 6) 5333 | -7/Data Miner | Met Data Miner 5375 | -7/Data Miner | Learned location of Section 7 (-2) 5375 | -7/Data Miner | Acquired the access code to Warlord's prototype stash 5500 | -7/Data Miner | Received God Mode back door access code from Data Miner 5578 | -7/Data Miner | Entered Proximity Caves 5601 | -6/Proximity Caves | Spotted B-75 Beast 5778 | -6/Proximity Caves | Allies destroyed B-75 Beast 5782 | -6/Proximity Caves | Escorted by Enhanced Grunt 5966 | -6/Proximity Caves | Discovered new exit (range 16) 5973 | -6/Proximity Caves | Attracted the attention of an 0b10 checkpoint 5992 | -6/Proximity Caves | Found Prototype Device 6012 | -6/Proximity Caves | Identified Exp. Thermal Shield 6056 | -6/Proximity Caves | Entered Factory 6056 | -6/Factory | Evolved 2 slots: Utility x2 6115 | -6/Factory | Garrison activated, responded to threat 6136 | -6/Factory | Incoming assault squad redirected 6149 | -6/Factory | Build established: Hauler-Mutant 6351 | -6/Factory | Lost 10 parts (1p5n2u2w) 6960 | -6/Factory | Discovered new exit (range 17) 7318 | -6/Factory | Entered another Factory area 7318 | -5/Factory | Evolved 2 slots: Utility x1, Weapon x1 7855 | -5/Factory | Build established: Hauler-Gunner 8086 | -5/Factory | Discovered new exit (range 6) 8117 | -5/Factory | Entered Extension 8253 | -5/Extension | Rescued a captive Derelict 8274 | -5/Extension | Rescued a captive Derelict 8275 | -5/Extension | Rescued a captive Derelict 8627 | -5/Extension | Energy Cycler disabled 8629 | -5/Extension | Rescued a captive Derelict 8629 | -5/Extension | Rescued a captive Derelict 8630 | -5/Extension | Rescued A7 8644 | -5/Extension | Rescued a captive Derelict 8717 | -5/Extension | First assault squad dispatched 8739 | -5/Extension | Incoming assault squad redirected 9040 | -5/Extension | Found Prototype Protection 9040 | -5/Extension | Identified Med. Regenerative Plating 9352 | -5/Extension | Build established: Commander-Gunner 9383 | -5/Extension | Discovered new exit (range 10) 9385 | -5/Extension | Discovered new exit (range 6) 9392 | -5/Extension | Disrupted transfer network 9477 | -5/Extension | Entered Cetus 9477 | -5/Cetus | Accompanied by 9 allies 9482 | -5/Cetus | Acquired a Cetus Manufacturing Module code from A7 9502 | -5/Cetus | Spotted Cetus Guard 9502 | -5/Cetus | Spotted Cetus Guard 9502 | -5/Cetus | Destroyed Cetus Guard 9504 | -5/Cetus | Spotted Cetus Guard 9504 | -5/Cetus | Spotted Cetus Guard 9513 | -5/Cetus | Allies destroyed Cetus Guard 9516 | -5/Cetus | Allies destroyed Cetus Guard 9520 | -5/Cetus | Allies destroyed Cetus Guard 9565 | -5/Cetus | Cetus Manufacturing Module disabled 9683 | -5/Cetus | Failed to start Cetus Manufacturing Module 9726 | -5/Cetus | Escorted A7 to Cetus Mainframe 9830 | -5/Cetus | Discovered new exit (range 16) 9863 | -5/Cetus | Spotted Cetus Guard 9864 | -5/Cetus | Spotted Cetus Guard 9865 | -5/Cetus | Destroyed Cetus Guard 9867 | -5/Cetus | Spotted Cetus Guard 9875 | -5/Cetus | Spotted Cetus Guard 9885 | -5/Cetus | Allies destroyed Cetus Guard 9897 | -5/Cetus | Destroyed Cetus Guard 9900 | -5/Cetus | Destroyed Cetus Guard 9920 | -5/Cetus | Discovered new exit (range 15) 9930 | -5/Cetus | Met Revision 17 9973 | -5/Cetus | Identified exit to Factory 10171 | -5/Cetus | Build established: Scavenger-Gunner 10207 | -5/Cetus | Identified exit to Archives 10208 | -5/Cetus | Entered Archives 10208 | -5/Archives | Accompanied by 1 ally 10213 | -5/Archives | Received a hacking code to weaken MAIN.C 10332 | -5/Archives | Discovered new exit (range 16) 10345 | -5/Archives | Unable to access archive contents 10362 | -5/Archives | Unable to access archive contents 10368 | -5/Archives | Discovered new exit (range 13) 10382 | -5/Archives | Unable to access archive contents 10387 | -5/Archives | Discovered exit to Factory (range 14) 10485 | -5/Archives | Identified exit to Hub_04(d) 10529 | -5/Archives | Build established: Scavenger-Mutant 10585 | -5/Archives | Entered Hub_04(d) 10754 | -5/Hub_04(d) | Discovered exit to Factory (range 4) 10885 | -5/Hub_04(d) | First assault squad dispatched 10905 | -5/Hub_04(d) | Destroyed 10 combat bots 10969 | -5/Hub_04(d) | Network Hub disabled 10969 | -5/Hub_04(d) | Garrison activated, responded to threat 10976 | -5/Hub_04(d) | Crushed by falling debris 10983 | -5/Hub_04(d) | Spotted Lightning 10987 | -5/Hub_04(d) | Core integrity fell below 50% 10988 | -5/Hub_04(d) | Destroyed Lightning 10989 | -5/Hub_04(d) | Spotted Lightning 10991 | -5/Hub_04(d) | Spotted Lightning 10992 | -5/Hub_04(d) | Spotted Lightning 10996 | -5/Hub_04(d) | Spotted Lightning 10997 | -5/Hub_04(d) | Destroyed Lightning 10998 | -5/Hub_04(d) | System corruption reached 10% 11006 | -5/Hub_04(d) | Core integrity fell below 20% 11009 | -5/Hub_04(d) | Destroyed Lightning 11015 | -5/Hub_04(d) | Destroyed Lightning 11028 | -5/Hub_04(d) | Destroyed by G-50 Soldier with Heavy Laser Last Messages --------------- 11015_ Lightning suffers critical hit. 11015_ Lightning destroyed. 11015_ Switching to secondary target: B-60 Warrior. 11015_ System corrupted: Railgun targeting data glitched. 11015_ Slug penetrates U-05 Engineer. 11015_ Slug penetrates B-60 Warrior. 11017_ W-25 Informer sends out distress signal. 11017_ Penetrated by EMDS Slug. 11017_ Centrium Medium Armor Plating destroyed. 11019_ System corrupted: Component data lost. 11019_ Dropped Matter Compressor. 11019_ System corrupted: Imp. KE Penetrator targeting data glitched. 11020_ Extracted 250 matter. 11021_ Slug penetrates Lightning. 11021_ Penetrated by EMDS Slug. 11024_ Slug penetrates Lightning. 11026_ System corrupted: KE Penetrator targeting data glitched. 11026_ Imp. KE Penetrator destroyed. 11027_ KE Penetrator destroyed. 11027_ Penetrated by EMDS Slug. Map ----- +----------------------------------------------------+ | ?????????????????????????????????????????????????? | | ?????????????????????????????????????????????????? | | ?????????????????????????????????????????????????? | | ?????????????????????????????????????????????????? | | ?????????????????????????????????????????????????? | | ?????????????????????????????????????????????????? | | ?????????????????????????????????????????????????? | | ?????????????????????????????????????????????????? | | ?????????????????????????????????????????????????? | | ?????????????????????????????????????????????????? | | ??????????????????????? ???????????????????????? | | ?????????????????????? ####???????????????????? | | ???????????????????####;;;; ????????????????? | | ???????????????????# !%??????????????? | | ???????????????????# ;;;;;;;;;;;=!%h????????????? | | ?????????????? =# ?# ; [ !!%!=????????????? | | ????????????? # # ; *%= =% !%!!]!%???????????? | | ??????????? A # ; ! !;;!!!???????????? | | ??????????? ; # ; ;;! ??????????? | | ?????????? ; ;[*; ;; ??????????? | | ?????????? ; g%g[ ;; gg??????????? | | ??????????? ; g![%* ;; ?????????? | | ?????????#??;;;;;;;g*%! b ;; ?????????? | | ??????? ??# | =; % ;; ;????????? | | ?????""" """"?# =*;; l ;; #????????? | | ?????""" " ; *=%; @ ;; #????????? | | ??#???"" """" #* /%!;;;%;;;;;;;;;; #????????? | | ??# ??"" """"!#! % ; ; #????????? | | ??#=?? #% %%! ; #;####?????????? | | ??#!?? ?###g;;#;;;;##########??????????????? | | ###%######+#####;g#*/! ! #?????????????????? | | |!=^^=% %%%%!=!%/%%= #?????????????????? | | !=[% [ %*!= [=%*!%#= " """" #?????????????????? | | =!=^^!=!=*= =!*=[#!= "" """" #?????????????????? | | #############"###+#% "" """" #?????????????????? | | #???????# # " "" """"???????????????????? | | #???????# # ????????????????????? | | #???????# * # """ """????????????????????? | | ????????# # """" ""?????????????????????? | | ????????# # """" "??????????????????????? | | ????????# # """??"??????????????????????? | | ????????# # ??? ??????????????????????? | | ????????# ####???????????????????????????? | | ????????###########??????????????????????????????? | | ?????????????????????????????????????????????????? | | ?????????????????????????????????????????????????? | | ?????????????????????????????????????????????????? | | ?????????????????????????????????????????????????? | | ?????????????????????????????????????????????????? | | ?????????????????????????????????????????????????? | +----------------------------------------------------+ Best States ------------- Heat Dissipation 71 Coolant Potential 100 Energy Generation 25 Energy Capacity 950 Matter Stores 300 Matter Capacity 300 Sight Range 22 Terrain Scan Range 16 Terrain Scan Density 210 Armor Coverage 1350 Resistance: TH 10 Utility Shielding 66 Weapon Cycling 15 Evasion (%) 41 Targeting Accuracy 8 Target Analysis 6 Recoil Reduction 4 Kinecelleration 40 Offensive Hacking 10 Item Schematics ----------------- Lrg. Storage Unit | -9/Materials | Scanalyzed Hcp. Storage Unit | -8/Materials | Hacked Arm. Wheel | -8/Materials | Hacked Combat Drone Bay | -7/Data Miner | Free Lgt. Regenerative Plating | -7/Data Miner | Free Exp. Flexi-carbon Leg | -7/Data Miner | Free Exp. Terrain Scan Processor | -7/Data Miner | Free Exp. Targeting Computer | -7/Data Miner | Free Mni. Smartbomb Launcher | -7/Data Miner | Free Plasma Sword | -7/Data Miner | Free Robot Schematics ------------------ S-27 Virus | -7/Data Miner | Free G-50 Soldier | -7/Data Miner | Free L-41 Fighter | -7/Data Miner | Free I-36 Angel | -7/Data Miner | Free Fabricated ------------ Nothing Alien Tech Used ----------------- None Achievements -------------- It Was An Accident, I Swear Main Advantage Project G-00 Challenges ------------ None Game ------ Seed SubatomicGuidanceArmor Manual? 0 Play Time 02:11:03 Cumulative 77.7 hours Start 2020.02.15 @ 09:25:25 End 2020.02.17 @ 15:49:54 Sessions 5 Manual Loads 0 Difficulty Rogue Special Mode None Game No. 41 Rogue 41 Adventurer 0 Explorer 0 Win Type - Total 0 Types 0/0/0/0/0/0/0 Lore% 39 Gallery% 61 Achievement% 45 Wizard Run 0 Options --------- ASCII 0 Keyboard 0 Movement Numpad Keybinds 0 Fullscreen 1 Font 18/SmallcapsGlow Map View 76x50 Tactical HUD 1 Map Filters NONE Filters NONE Steam 1 RUN: 874284d6-3f09-4592-9c08-94aebb0934d0